[Event "*** SCC Grand Prix: Titled Tuesday Blitz"]
[Site "Chess.com"]
[Date "2020.07.07"]
[Round "1"]
[White "chito89"]
[Black "biesiadnik"]
[Result "1/2-1/2"]
[WhiteElo "2807"]
[BlackElo "2434"]
[TimeControl "180+1"]
[EndTime "10:07:34 PDT"]
[Termination "Game drawn by agreement"]

1. e4 {[%clk 0:02:51]} 1... e6 {[%clk 0:02:59.8]} 2. d4 {[%clk 0:02:50.3]} 2...
d5 {[%clk 0:03:00.3]} 3. Nc3 {[%clk 0:02:51.2]} 3... Bb4 {[%clk 0:03:00]} 4. Ne2
{[%clk 0:02:48.9]} 4... Nc6 {[%clk 0:02:58.9]} 5. a3 {[%clk 0:02:47.3]} 5... Ba5
{[%clk 0:02:53.9]} 6. b4 {[%clk 0:02:47]} 6... Bb6 {[%clk 0:02:53.8]} 7. Bb2
{[%clk 0:02:47.9]} 7... a5 {[%clk 0:02:49.1]} 8. b5 {[%clk 0:02:47]} 8... Nce7
{[%clk 0:02:49.3]} 9. g3 {[%clk 0:02:38.9]} 9... a4 {[%clk 0:02:41.6]} 10. Bg2
{[%clk 0:02:37.4]} 10... Nf6 {[%clk 0:02:41.7]} 11. e5 {[%clk 0:02:34]} 11...
Nd7 {[%clk 0:02:41.6]} 12. O-O {[%clk 0:02:34.4]} 12... c5 {[%clk 0:02:41.8]}
13. bxc6 {[%clk 0:02:12.1]} 13... bxc6 {[%clk 0:02:39.9]} 14. Nf4 {[%clk
0:02:11.2]} 14... Ba6 {[%clk 0:02:28]} 15. Re1 {[%clk 0:02:06.1]} 15... Bc4
{[%clk 0:02:22.3]} 16. Nb1 {[%clk 0:01:55]} 16... Ng6 {[%clk 0:02:19.7]} 17.
Nxg6 {[%clk 0:01:43.5]} 17... hxg6 {[%clk 0:01:54.6]} 18. Nd2 {[%clk 0:01:43]}
18... Bb5 {[%clk 0:01:53.1]} 19. h4 {[%clk 0:01:42.9]} 19... Ba5 {[%clk
0:01:49.5]} 20. Re3 {[%clk 0:01:41.2]} 20... Nb6 {[%clk 0:01:48.4]} 21. Bc3
{[%clk 0:01:38.3]} 21... Nc4 {[%clk 0:01:44.7]} 22. Nxc4 {[%clk 0:01:35]} 22...
Bxc4 {[%clk 0:01:43.7]} 23. Qg4 {[%clk 0:01:30.9]} 23... Rb8 {[%clk 0:01:37.5]}
24. Rf3 {[%clk 0:01:22.5]} 24... Bxc3 {[%clk 0:01:34]} 25. Rxc3 {[%clk
0:01:23.4]} 25... Qa5 {[%clk 0:01:34.2]} 26. Rxc4 {[%clk 0:01:15]} 26... dxc4
{[%clk 0:01:31.7]} 27. Bxc6+ {[%clk 0:01:15.9]} 27... Kf8 {[%clk 0:01:27]} 28.
Qf3 {[%clk 0:01:00]} 28... Ke7 {[%clk 0:01:23.8]} 29. d5 {[%clk 0:00:58.4]}
29... exd5 {[%clk 0:00:47]} 30. Bxd5 {[%clk 0:00:59.3]} 30... Rhf8 {[%clk
0:00:46]} 31. Bxc4 {[%clk 0:00:56.6]} 31... Rbc8 {[%clk 0:00:27]} 32. Qf4 {[%clk
0:00:40.6]} 32... Qc3 {[%clk 0:00:23.6]} 33. Rd1 {[%clk 0:00:24.7]} 33... Rxc4
{[%clk 0:00:18.1]} 34. Qg5+ {[%clk 0:00:24.6]} 34... f6 {[%clk 0:00:18.2]} 35.
exf6+ {[%clk 0:00:23.6]} 35... gxf6 {[%clk 0:00:18.8]} 36. Qd5 {[%clk
0:00:21.7]} 36... Rc7 {[%clk 0:00:17.5]} 37. Rd3 {[%clk 0:00:18.9]} 37... Qa1+
{[%clk 0:00:13.8]} 38. Kh2 {[%clk 0:00:18.2]} 38... Rfc8 {[%clk 0:00:14.7]} 39.
Re3+ {[%clk 0:00:11.7]} 39... Kf8 {[%clk 0:00:14.9]} 40. h5 {[%clk 0:00:10.8]}
40... gxh5 {[%clk 0:00:13.3]} 41. Qxh5 {[%clk 0:00:10.5]} 41... Kg8 {[%clk
0:00:13.6]} 42. Qg6+ {[%clk 0:00:07.6]} 42... Rg7 {[%clk 0:00:12.2]} 43. Re8+
{[%clk 0:00:08.1]} 43... Rxe8 {[%clk 0:00:12.2]} 44. Qxe8+ {[%clk 0:00:09]}
44... Kh7 {[%clk 0:00:12.9]} 45. Qh5+ {[%clk 0:00:09.7]} 45... Kg8 {[%clk
0:00:13.6]} 1/2-1/2

[Event "*** SCC Grand Prix: Titled Tuesday Blitz"]
[Site "Chess.com"]
[Date "2020.07.07"]
[Round "1"]
[White "gagtemp"]
[Black "Semetey"]
[Result "0-1"]
[WhiteElo "1881"]
[BlackElo "2475"]
[TimeControl "180+1"]
[EndTime "10:07:34 PDT"]
[Termination "Semetey won by resignation"]

1. e4 {[%clk 0:03:00.6]} 1... c5 {[%clk 0:02:59.4]} 2. Nf3 {[%clk 0:03:00.3]}
2... e6 {[%clk 0:02:59]} 3. d4 {[%clk 0:03:00.6]} 3... cxd4 {[%clk 0:02:57.3]}
4. Nxd4 {[%clk 0:03:01.5]} 4... a6 {[%clk 0:02:57.8]} 5. Nc3 {[%clk 0:03:01.4]}
5... Qc7 {[%clk 0:02:58]} 6. Be3 {[%clk 0:02:59]} 6... Nf6 {[%clk 0:02:40.6]} 7.
Bd3 {[%clk 0:02:57.8]} 7... b5 {[%clk 0:02:39.1]} 8. a3 {[%clk 0:02:56.6]} 8...
Bb7 {[%clk 0:02:39.2]} 9. O-O {[%clk 0:02:55.8]} 9... d6 {[%clk 0:02:39.1]} 10.
Kh1 {[%clk 0:02:55.1]} 10... Nbd7 {[%clk 0:02:39.3]} 11. f4 {[%clk 0:02:50.2]}
11... Be7 {[%clk 0:02:39.1]} 12. Qe1 {[%clk 0:02:47]} 12... O-O {[%clk
0:02:38.5]} 13. Qg3 {[%clk 0:02:43.2]} 13... Rac8 {[%clk 0:02:36]} 14. Rae1
{[%clk 0:02:33.4]} 14... Rfe8 {[%clk 0:02:32.3]} 15. Qh3 {[%clk 0:02:23.8]}
15... Bf8 {[%clk 0:02:27.3]} 16. e5 {[%clk 0:02:05.5]} 16... dxe5 {[%clk
0:02:24.2]} 17. fxe5 {[%clk 0:02:04.4]} 17... Qxe5 {[%clk 0:02:24.2]} 18. Bg1
{[%clk 0:01:39.5]} 18... Qh5 {[%clk 0:02:18.2]} 19. Qg3 {[%clk 0:01:28.1]} 19...
Rc5 {[%clk 0:01:59.1]} 20. Nf3 {[%clk 0:01:14.2]} 20... Rec8 {[%clk 0:01:40.2]}
21. Bxc5 {[%clk 0:01:11.1]} 21... Qxc5 {[%clk 0:01:35.2]} 22. Ne5 {[%clk
0:01:07.3]} 22... g6 {[%clk 0:00:39.8]} 23. Nxd7 {[%clk 0:00:56.6]} 23... Nxd7
{[%clk 0:00:40.7]} 24. Ne4 {[%clk 0:00:44.3]} 24... Qe7 {[%clk 0:00:27.7]} 25.
h4 {[%clk 0:00:39.3]} 25... Bg7 {[%clk 0:00:24.6]} 26. b3 {[%clk 0:00:37.5]}
26... h5 {[%clk 0:00:18.4]} 27. Ng5 {[%clk 0:00:35.8]} 27... Nf6 {[%clk
0:00:18.1]} 28. Ne4 {[%clk 0:00:32.2]} 28... Nxe4 {[%clk 0:00:17.1]} 29. Bxe4
{[%clk 0:00:31.8]} 29... Bxe4 {[%clk 0:00:17.7]} 30. Rxe4 {[%clk 0:00:31.2]}
30... Rxc2 {[%clk 0:00:18.3]} 31. Qd3 {[%clk 0:00:28.4]} 31... Rc3 {[%clk
0:00:17.5]} 32. Qb1 {[%clk 0:00:22]} 32... Qxa3 {[%clk 0:00:16.6]} 33. Rd1
{[%clk 0:00:19.2]} 33... Rxb3 {[%clk 0:00:16]} 34. Rd8+ {[%clk 0:00:18.8]} 34...
Kh7 {[%clk 0:00:16.4]} 35. Qe1 {[%clk 0:00:18.7]} 35... Qa2 {[%clk 0:00:15.5]}
36. Re2 {[%clk 0:00:18.5]} 36... Qa4 {[%clk 0:00:14.5]} 37. Qf2 {[%clk
0:00:18.5]} 37... Rb1+ {[%clk 0:00:14.1]} 38. Re1 {[%clk 0:00:18]} 38... Rb4
{[%clk 0:00:15]} 39. Rdd1 {[%clk 0:00:17.5]} 39... Rxh4+ {[%clk 0:00:14.4]} 40.
Kg1 {[%clk 0:00:16]} 40... Bd4 {[%clk 0:00:15.3]} 41. Rxd4 {[%clk 0:00:16]}
41... Qxd4 {[%clk 0:00:14.7]} 42. Re3 {[%clk 0:00:15.6]} 42... Qd1+ {[%clk
0:00:14.3]} 43. Re1 {[%clk 0:00:15.7]} 43... Qd4 {[%clk 0:00:14.5]} 44. Re3
{[%clk 0:00:15.9]} 44... Rf4 {[%clk 0:00:14.8]} 45. Rf3 {[%clk 0:00:15.7]} 45...
Qxf2+ {[%clk 0:00:14]} 46. Rxf2 {[%clk 0:00:16.6]} 46... Rxf2 {[%clk 0:00:14.1]}
47. Kxf2 {[%clk 0:00:17.5]} 47... a5 {[%clk 0:00:14.9]} 0-1

[Event "*** SCC Grand Prix: Titled Tuesday Blitz"]
[Site "Chess.com"]
[Date "2020.07.07"]
[Round "1"]
[White "1977Ivan"]
[Black "tlomigtlis"]
[Result "1-0"]
[WhiteElo "2681"]
[BlackElo "2363"]
[TimeControl "180+1"]
[EndTime "10:07:35 PDT"]
[Termination "1977Ivan won by checkmate"]

1. d4 {[%clk 0:03:00.9]} 1... d5 {[%clk 0:02:59]} 2. c4 {[%clk 0:03:00.7]} 2...
c6 {[%clk 0:02:59.2]} 3. Nf3 {[%clk 0:03:00]} 3... Nf6 {[%clk 0:02:59.5]} 4. Nc3
{[%clk 0:03:00.4]} 4... e6 {[%clk 0:02:59.6]} 5. Bg5 {[%clk 0:02:58.4]} 5...
dxc4 {[%clk 0:02:59.7]} 6. a4 {[%clk 0:02:55.7]} 6... b5 {[%clk 0:02:59.6]} 7.
axb5 {[%clk 0:02:54.3]} 7... cxb5 {[%clk 0:03:00.5]} 8. Nxb5 {[%clk 0:02:54.4]}
8... Qb6 {[%clk 0:03:00.1]} 9. Na3 {[%clk 0:02:54.4]} 9... Bxa3 {[%clk
0:02:59.8]} 10. Rxa3 {[%clk 0:02:29.6]} 10... Qxb2 {[%clk 0:02:42.8]} 11. Qc1
{[%clk 0:02:08.2]} 11... Qxc1+ {[%clk 0:02:33.2]} 12. Bxc1 {[%clk 0:02:06.8]}
12... Nc6 {[%clk 0:02:34.1]} 13. e3 {[%clk 0:01:54.3]} 13... Nb4 {[%clk
0:02:29.6]} 14. Ra4 {[%clk 0:01:50.8]} 14... Nd3+ {[%clk 0:02:26]} 15. Bxd3
{[%clk 0:01:49.8]} 15... cxd3 {[%clk 0:02:26.9]} 16. Ne5 {[%clk 0:01:48]} 16...
Bb7 {[%clk 0:02:16.5]} 17. Nxd3 {[%clk 0:01:37.4]} 17... Bxg2 {[%clk 0:02:08.6]}
18. Rg1 {[%clk 0:01:36.9]} 18... Bc6 {[%clk 0:02:09.1]} 19. Ra5 {[%clk 0:01:34]}
19... O-O {[%clk 0:02:03.6]} 20. Ne5 {[%clk 0:01:23.2]} 20... Bd5 {[%clk
0:01:56.2]} 21. f3 {[%clk 0:01:15.8]} 21... Rfc8 {[%clk 0:01:54.7]} 22. Bd2
{[%clk 0:01:14.3]} 22... Rcb8 {[%clk 0:01:28.4]} 23. Ke2 {[%clk 0:01:08.5]}
23... Rb2 {[%clk 0:01:24.4]} 24. Rga1 {[%clk 0:00:47.6]} 24... h6 {[%clk
0:00:52.7]} 25. Rxa7 {[%clk 0:00:46.4]} 25... Rc8 {[%clk 0:00:48.8]} 26. e4
{[%clk 0:00:20.9]} 26... Bc4+ {[%clk 0:00:36.5]} 27. Ke3 {[%clk 0:00:17]} 27...
Rb3+ {[%clk 0:00:24.2]} 28. Kf4 {[%clk 0:00:16.5]} 28... g5+ {[%clk 0:00:23.2]}
29. Kg3 {[%clk 0:00:15.5]} 29... Nxe4+ {[%clk 0:00:23.5]} 30. Kg4 {[%clk
0:00:13.4]} 30... Nxd2 {[%clk 0:00:22.3]} 31. Rxf7 {[%clk 0:00:11.7]} 31... Bd5
{[%clk 0:00:21.3]} 32. Raa7 {[%clk 0:00:09.8]} 32... Bb7 {[%clk 0:00:14]} 33.
Raxb7 {[%clk 0:00:08.1]} 33... Rxb7 {[%clk 0:00:14.9]} 34. Rxb7 {[%clk
0:00:07.7]} 34... Nc4 {[%clk 0:00:15.8]} 35. Re7 {[%clk 0:00:05.9]} 35... Ne3+
{[%clk 0:00:13]} 36. Kh5 {[%clk 0:00:05.2]} 36... Nf5 {[%clk 0:00:12]} 37. Rd7
{[%clk 0:00:05.6]} 37... Rc2 {[%clk 0:00:10.1]} 38. Kg6 {[%clk 0:00:05.8]} 38...
Rc8 {[%clk 0:00:10]} 39. Kf6 {[%clk 0:00:05]} 39... Re8 {[%clk 0:00:08.6]} 40.
d5 {[%clk 0:00:04.1]} 40... exd5 {[%clk 0:00:07.9]} 41. Kxf5 {[%clk 0:00:03.9]}
41... Rf8+ {[%clk 0:00:08.5]} 42. Kg6 {[%clk 0:00:04]} 42... Re8 {[%clk
0:00:07.6]} 43. Rg7+ {[%clk 0:00:04.3]} 43... Kf8 {[%clk 0:00:07.1]} 44. Nd7#
{[%clk 0:00:04.4]} 1-0

[Event "*** SCC Grand Prix: Titled Tuesday Blitz"]
[Site "Chess.com"]
[Date "2020.07.07"]
[Round "1"]
[White "Riptide27"]
[Black "Roza_Idrisova"]
[Result "0-1"]
[WhiteElo "2532"]
[BlackElo "2216"]
[TimeControl "180+1"]
[EndTime "10:07:36 PDT"]
[Termination "Roza_Idrisova won by resignation"]

1. d4 {[%clk 0:02:57.4]} 1... d5 {[%clk 0:03:00]} 2. c4 {[%clk 0:02:57.1]} 2...
c6 {[%clk 0:03:00.2]} 3. cxd5 {[%clk 0:02:57]} 3... cxd5 {[%clk 0:02:59.8]} 4.
Bf4 {[%clk 0:02:57.4]} 4... Nc6 {[%clk 0:02:59.9]} 5. e3 {[%clk 0:02:57.2]} 5...
Qb6 {[%clk 0:02:58.7]} 6. Nc3 {[%clk 0:02:54.3]} 6... Nf6 {[%clk 0:02:57.6]} 7.
a3 {[%clk 0:02:45]} 7... Bf5 {[%clk 0:02:53.8]} 8. Nb5 {[%clk 0:02:35.7]} 8...
Rc8 {[%clk 0:02:48.6]} 9. b4 {[%clk 0:02:29.7]} 9... a6 {[%clk 0:02:48.5]} 10.
Nc3 {[%clk 0:02:24.7]} 10... e6 {[%clk 0:02:21.1]} 11. Na4 {[%clk 0:02:20.8]}
11... Qd8 {[%clk 0:02:19.6]} 12. Nc5 {[%clk 0:02:18.3]} 12... Bxc5 {[%clk
0:02:18.4]} 13. bxc5 {[%clk 0:02:11.1]} 13... O-O {[%clk 0:02:16.1]} 14. Nf3
{[%clk 0:02:11.5]} 14... Ne4 {[%clk 0:02:15.7]} 15. Qa4 {[%clk 0:01:32.3]} 15...
f6 {[%clk 0:01:51.7]} 16. Bd3 {[%clk 0:01:21.5]} 16... Nc3 {[%clk 0:01:47.1]}
17. Qc2 {[%clk 0:01:19.6]} 17... Bxd3 {[%clk 0:01:40.1]} 18. Qxd3 {[%clk
0:01:20.5]} 18... Qa5 {[%clk 0:01:36.3]} 19. O-O {[%clk 0:01:18.2]} 19... b6
{[%clk 0:01:30.2]} 20. Nd2 {[%clk 0:01:04.8]} 20... e5 {[%clk 0:01:12.7]} 21.
Bg3 {[%clk 0:00:55.6]} 21... e4 {[%clk 0:01:08.9]} 22. Qc2 {[%clk 0:00:55.1]}
22... Ne2+ {[%clk 0:01:02.6]} 23. Kh1 {[%clk 0:00:54.4]} 23... Nxg3+ {[%clk
0:01:02.1]} 24. fxg3 {[%clk 0:00:53.6]} 24... bxc5 {[%clk 0:01:01.9]} 25. Nb3
{[%clk 0:00:53.1]} 25... Qb5 {[%clk 0:00:56.8]} 26. Nxc5 {[%clk 0:00:52.5]}
26... Na5 {[%clk 0:00:51.1]} 27. Rab1 {[%clk 0:00:48.5]} 27... Qc6 {[%clk
0:00:50]} 28. g4 {[%clk 0:00:29.4]} 28... Nc4 {[%clk 0:00:49.7]} 29. Rb3 {[%clk
0:00:29.8]} 29... a5 {[%clk 0:00:46.6]} 30. Rc3 {[%clk 0:00:27]} 30... Qe8
{[%clk 0:00:39.5]} 31. h3 {[%clk 0:00:23.2]} 31... h5 {[%clk 0:00:38.7]} 32.
gxh5 {[%clk 0:00:19.4]} 32... Qxh5 {[%clk 0:00:37.5]} 33. Nxe4 {[%clk
0:00:19.2]} 33... Nxe3 {[%clk 0:00:28.8]} 34. Nxf6+ {[%clk 0:00:10.6]} 34...
gxf6 {[%clk 0:00:24]} 35. Rxc8 {[%clk 0:00:10.2]} 35... Nxc2 {[%clk 0:00:22.7]}
36. Rxc2 {[%clk 0:00:11.1]} 36... Rf7 {[%clk 0:00:20.3]} 37. Rcf2 {[%clk
0:00:10.6]} 37... Kg7 {[%clk 0:00:20.1]} 38. Rf5 {[%clk 0:00:10.4]} 38... Qe2
{[%clk 0:00:19.6]} 39. R1f3 {[%clk 0:00:08.6]} 39... Qe4 {[%clk 0:00:19.2]} 40.
Kh2 {[%clk 0:00:08.1]} 40... Qxd4 {[%clk 0:00:18.9]} 41. R5f4 {[%clk 0:00:06.4]}
41... Qe5 {[%clk 0:00:18.8]} 42. Rg3+ {[%clk 0:00:06.7]} 42... Kf8 {[%clk
0:00:18.6]} 43. Rh4 {[%clk 0:00:06.2]} 43... d4 {[%clk 0:00:18.3]} 44. Rh8+
{[%clk 0:00:05.6]} 44... Ke7 {[%clk 0:00:18.6]} 0-1

[Event "*** SCC Grand Prix: Titled Tuesday Blitz"]
[Site "Chess.com"]
[Date "2020.07.07"]
[Round "1"]
[White "peixe64"]
[Black "GMNickPert"]
[Result "1/2-1/2"]
[WhiteElo "2316"]
[BlackElo "2622"]
[TimeControl "180+1"]
[EndTime "10:07:37 PDT"]
[Termination "Game drawn by repetition"]

1. e4 {[%clk 0:02:58.4]} 1... c5 {[%clk 0:02:58.6]} 2. Nf3 {[%clk 0:02:58.8]}
2... Nc6 {[%clk 0:02:58.4]} 3. d4 {[%clk 0:02:58.9]} 3... cxd4 {[%clk
0:02:58.3]} 4. Nxd4 {[%clk 0:02:59.8]} 4... e5 {[%clk 0:02:58.2]} 5. Nb5 {[%clk
0:02:58.9]} 5... d6 {[%clk 0:02:58.1]} 6. c4 {[%clk 0:02:58.9]} 6... Be7 {[%clk
0:02:57.1]} 7. N1c3 {[%clk 0:02:55.9]} 7... a6 {[%clk 0:02:56.8]} 8. Na3 {[%clk
0:02:56]} 8... Nf6 {[%clk 0:02:56.6]} 9. Be2 {[%clk 0:02:51.3]} 9... Be6 {[%clk
0:02:55.8]} 10. Be3 {[%clk 0:02:49.8]} 10... Rc8 {[%clk 0:02:55.2]} 11. O-O
{[%clk 0:02:45.2]} 11... O-O {[%clk 0:02:54.2]} 12. Rc1 {[%clk 0:02:34]} 12...
Nd7 {[%clk 0:02:44.2]} 13. Bg4 {[%clk 0:02:25.5]} 13... Nc5 {[%clk 0:02:25.8]}
14. Re1 {[%clk 0:01:39]} 14... Nd4 {[%clk 0:02:12.6]} 15. b4 {[%clk 0:01:15.1]}
15... Bxg4 {[%clk 0:02:03.5]} 16. Qxg4 {[%clk 0:01:16]} 16... Nd3 {[%clk
0:02:01.8]} 17. Bxd4 {[%clk 0:01:05.6]} 17... exd4 {[%clk 0:01:59]} 18. Nd5
{[%clk 0:01:06.1]} 18... Kh8 {[%clk 0:01:36]} 19. Qg3 {[%clk 0:00:52]} 19...
Nxc1 {[%clk 0:01:32.1]} 20. Rxc1 {[%clk 0:00:52.9]} 20... b5 {[%clk 0:01:27.3]}
21. Qd3 {[%clk 0:00:49.7]} 21... bxc4 {[%clk 0:01:27]} 22. Nxc4 {[%clk
0:00:49.1]} 22... Bg5 {[%clk 0:01:26.2]} 23. Rc2 {[%clk 0:00:47.4]} 23... Re8
{[%clk 0:01:17]} 24. Qxd4 {[%clk 0:00:43.3]} 24... f5 {[%clk 0:01:16.3]} 25. Re2
{[%clk 0:00:25.4]} 25... fxe4 {[%clk 0:01:15]} 26. Rxe4 {[%clk 0:00:23.6]} 26...
Rxe4 {[%clk 0:01:13.1]} 27. Qxe4 {[%clk 0:00:23.8]} 27... Qe8 {[%clk 0:00:57.7]}
28. Qxe8+ {[%clk 0:00:22]} 28... Rxe8 {[%clk 0:00:58.6]} 29. f4 {[%clk
0:00:21.9]} 29... Be7 {[%clk 0:00:55.5]} 30. a4 {[%clk 0:00:19.6]} 30... Bf8
{[%clk 0:00:55.1]} 31. b5 {[%clk 0:00:19.4]} 31... axb5 {[%clk 0:00:54.9]} 32.
axb5 {[%clk 0:00:20.3]} 32... Re4 {[%clk 0:00:53.9]} 33. Na5 {[%clk 0:00:17.4]}
33... Re1+ {[%clk 0:00:51.2]} 34. Kf2 {[%clk 0:00:17.1]} 34... Rb1 {[%clk
0:00:52.1]} 35. b6 {[%clk 0:00:17.1]} 35... g6 {[%clk 0:00:49.1]} 36. b7 {[%clk
0:00:17.5]} 36... Bg7 {[%clk 0:00:48.5]} 37. Ne7 {[%clk 0:00:13.9]} 37... Bd4+
{[%clk 0:00:47]} 38. Kf3 {[%clk 0:00:14.2]} 38... Bc3 {[%clk 0:00:37.5]} 39.
Nec6 {[%clk 0:00:07.1]} 39... Bxa5 {[%clk 0:00:36.9]} 40. b8=Q+ {[%clk
0:00:07.4]} 40... Rxb8 {[%clk 0:00:35.8]} 41. Nxb8 {[%clk 0:00:08.3]} 41... Kg7
{[%clk 0:00:35.7]} 42. Ke4 {[%clk 0:00:08.4]} 42... Bc7 {[%clk 0:00:29.6]} 43.
Nc6 {[%clk 0:00:08.4]} 43... d5+ {[%clk 0:00:30.5]} 44. Kxd5 {[%clk 0:00:08.2]}
44... Bxf4 {[%clk 0:00:30.1]} 45. h3 {[%clk 0:00:08.9]} 45... h5 {[%clk
0:00:29.6]} 46. Ke4 {[%clk 0:00:09.4]} 46... Bc7 {[%clk 0:00:29.3]} 47. Nd4
{[%clk 0:00:09.9]} 47... Kf7 {[%clk 0:00:29.2]} 48. Nf3 {[%clk 0:00:10.8]} 48...
Bd6 {[%clk 0:00:28.9]} 49. Nd4 {[%clk 0:00:11.2]} 49... Kf6 {[%clk 0:00:28.8]}
50. Nf3 {[%clk 0:00:11.6]} 50... Bc7 {[%clk 0:00:28.8]} 51. Nd4 {[%clk
0:00:09.7]} 51... Bd6 {[%clk 0:00:28.6]} 52. Nf3 {[%clk 0:00:10.3]} 52... Bc7
{[%clk 0:00:28.5]} 53. Nd4 {[%clk 0:00:11]} 53... Bd6 {[%clk 0:00:28.3]} 1/2-1/2

[Event "*** SCC Grand Prix: Titled Tuesday Blitz"]
[Site "Chess.com"]
[Date "2020.07.07"]
[Round "1"]
[White "Alopekos"]
[Black "superchess02"]
[Result "0-1"]
[WhiteElo "2335"]
[BlackElo "2660"]
[TimeControl "180+1"]
[EndTime "10:07:38 PDT"]
[Termination "superchess02 won on time"]

1. e4 {[%clk 0:03:00.9]} 1... e5 {[%clk 0:02:59.7]} 2. Nf3 {[%clk 0:03:00.7]}
2... Nc6 {[%clk 0:03:00.3]} 3. Bb5 {[%clk 0:03:01.3]} 3... a6 {[%clk 0:02:59.9]}
4. Ba4 {[%clk 0:03:01.4]} 4... Nf6 {[%clk 0:03:00.3]} 5. O-O {[%clk 0:03:02]}
5... Be7 {[%clk 0:02:59.2]} 6. Re1 {[%clk 0:03:01.8]} 6... b5 {[%clk 0:02:59.3]}
7. Bb3 {[%clk 0:03:02.3]} 7... d6 {[%clk 0:02:59.3]} 8. a4 {[%clk 0:03:02.7]}
8... Bb7 {[%clk 0:02:53.9]} 9. axb5 {[%clk 0:03:02.4]} 9... axb5 {[%clk
0:02:54.8]} 10. Rxa8 {[%clk 0:03:02.9]} 10... Qxa8 {[%clk 0:02:54]} 11. Nc3
{[%clk 0:03:03.8]} 11... b4 {[%clk 0:02:53.8]} 12. Nd5 {[%clk 0:03:03.9]} 12...
Nxd5 {[%clk 0:02:53.5]} 13. exd5 {[%clk 0:03:00.8]} 13... Na5 {[%clk 0:02:49.4]}
14. Ba4+ {[%clk 0:02:54.3]} 14... Kf8 {[%clk 0:02:49.6]} 15. d4 {[%clk
0:02:30.7]} 15... e4 {[%clk 0:02:33.1]} 16. Rxe4 {[%clk 0:01:56.3]} 16... Bxd5
{[%clk 0:02:32.9]} 17. Re1 {[%clk 0:01:46.4]} 17... Bxf3 {[%clk 0:02:21.3]} 18.
gxf3 {[%clk 0:01:23.4]} 18... c6 {[%clk 0:01:23.7]} 19. Qe2 {[%clk 0:01:16.8]}
19... Qd8 {[%clk 0:01:22.5]} 20. Bd2 {[%clk 0:00:33.3]} 20... c5 {[%clk
0:01:10.8]} 21. Qa6 {[%clk 0:00:23.6]} 21... h5 {[%clk 0:01:06.3]} 22. c3 {[%clk
0:00:08.3]} 22... d5 {[%clk 0:00:32.1]} 23. cxb4 {[%clk 0:00:05.8]} 23... Nc4
{[%clk 0:00:32.8]} 24. Bg5 {[%clk 0:00:03.6]} 24... f6 {[%clk 0:00:31.5]} 25.
Bf4 {[%clk 0:00:03.5]} 25... cxd4 {[%clk 0:00:29]} 26. b5 {[%clk 0:00:02.5]}
26... g5 {[%clk 0:00:24.3]} 27. Bc1 {[%clk 0:00:02.5]} 27... Bd6 {[%clk
0:00:20.3]} 28. Qc6 {[%clk 0:00:02.7]} 28... Kg7 {[%clk 0:00:17]} 29. b6 {[%clk
0:00:03]} 29... Nxb6 {[%clk 0:00:17]} 30. Bb3 {[%clk 0:00:02.8]} 30... Rf8
{[%clk 0:00:14.6]} 31. Bd2 {[%clk 0:00:03]} 31... Qc7 {[%clk 0:00:14.7]} 32.
Qxc7+ {[%clk 0:00:03.1]} 32... Bxc7 {[%clk 0:00:15.6]} 33. Re7+ {[%clk
0:00:02.9]} 33... Rf7 {[%clk 0:00:16.1]} 34. Re8 {[%clk 0:00:03.5]} 34... Nc4
{[%clk 0:00:15.5]} 35. Bb4 {[%clk 0:00:02.3]} 35... d3 {[%clk 0:00:15.8]} 36.
Rc8 {[%clk 0:00:01.5]} 36... Rd7 {[%clk 0:00:14.7]} 37. Kf1 {[%clk 0:00:01.9]}
37... Bxh2 {[%clk 0:00:13.8]} 38. Ba4 {[%clk 0:00:01.7]} 38... Ra7 {[%clk
0:00:11.5]} 0-1

[Event "*** SCC Grand Prix: Titled Tuesday Blitz"]
[Site "Chess.com"]
[Date "2020.07.07"]
[Round "1"]
[White "Shubinkirill2003"]
[Black "jonychess03"]
[Result "0-1"]
[WhiteElo "2609"]
[BlackElo "2317"]
[TimeControl "180+1"]
[EndTime "10:07:40 PDT"]
[Termination "jonychess03 won by resignation"]

1. e4 {[%clk 0:03:00.8]} 1... e6 {[%clk 0:02:57.9]} 2. d4 {[%clk 0:03:00.2]}
2... d5 {[%clk 0:02:58.2]} 3. Nc3 {[%clk 0:03:00.5]} 3... Bb4 {[%clk 0:02:57.1]}
4. e5 {[%clk 0:03:00.5]} 4... c5 {[%clk 0:02:57.2]} 5. a3 {[%clk 0:03:00.4]}
5... cxd4 {[%clk 0:02:57.5]} 6. axb4 {[%clk 0:02:52]} 6... dxc3 {[%clk
0:02:56.7]} 7. bxc3 {[%clk 0:02:52.9]} 7... Ne7 {[%clk 0:02:56.5]} 8. Nf3 {[%clk
0:02:48.8]} 8... Qc7 {[%clk 0:02:53.2]} 9. Bd3 {[%clk 0:02:44.1]} 9... Nd7
{[%clk 0:02:52.5]} 10. O-O {[%clk 0:02:38.9]} 10... Nxe5 {[%clk 0:02:51.6]} 11.
Bf4 {[%clk 0:02:09.6]} 11... Nxf3+ {[%clk 0:02:40.3]} 12. Qxf3 {[%clk
0:02:10.5]} 12... Qd8 {[%clk 0:02:38.9]} 13. Rfe1 {[%clk 0:01:46.7]} 13... O-O
{[%clk 0:02:34.5]} 14. Qh5 {[%clk 0:01:36]} 14... Ng6 {[%clk 0:02:28.3]} 15. Re3
{[%clk 0:01:27.7]} 15... f5 {[%clk 0:01:28]} 16. Bg5 {[%clk 0:01:25]} 16... Qe8
{[%clk 0:01:21.9]} 17. Rh3 {[%clk 0:01:05.5]} 17... h6 {[%clk 0:01:10.5]} 18.
Bxh6 {[%clk 0:01:05.2]} 18... gxh6 {[%clk 0:01:10.3]} 19. Qxh6 {[%clk
0:01:06.1]} 19... Kf7 {[%clk 0:00:48.5]} 20. Rg3 {[%clk 0:00:50.1]} 20... Rg8
{[%clk 0:00:41.9]} 21. Be2 {[%clk 0:00:46.6]} 21... Qf8 {[%clk 0:00:23.2]} 22.
Qd2 {[%clk 0:00:38.6]} 22... Kf6 {[%clk 0:00:17.2]} 23. Qg5+ {[%clk 0:00:33.6]}
23... Kf7 {[%clk 0:00:13.8]} 24. Bh5 {[%clk 0:00:32.6]} 24... Qg7 {[%clk
0:00:12.6]} 25. Re1 {[%clk 0:00:23.9]} 25... Qf6 {[%clk 0:00:12]} 26. Qh6 {[%clk
0:00:22]} 26... Rg7 {[%clk 0:00:11.7]} 27. h4 {[%clk 0:00:16.7]} 27... Bd7
{[%clk 0:00:11.5]} 28. c4 {[%clk 0:00:12.6]} 28... dxc4 {[%clk 0:00:10.4]} 29.
Qd2 {[%clk 0:00:11.9]} 29... Bc6 {[%clk 0:00:09.4]} 30. Bf3 {[%clk 0:00:09.3]}
30... Rd8 {[%clk 0:00:07.3]} 31. Qe3 {[%clk 0:00:07.8]} 31... f4 {[%clk
0:00:04.8]} 32. Qxa7 {[%clk 0:00:04.6]} 32... fxg3 {[%clk 0:00:04.5]} 33. fxg3
{[%clk 0:00:04.2]} 33... Qd4+ {[%clk 0:00:03.6]} 34. Qxd4 {[%clk 0:00:03.8]}
34... Rxd4 {[%clk 0:00:04.5]} 35. Rf1 {[%clk 0:00:04.2]} 35... Bxf3 {[%clk
0:00:04]} 36. Rxf3+ {[%clk 0:00:05.1]} 36... Ke7 {[%clk 0:00:03.6]} 37. c3
{[%clk 0:00:06]} 37... Rd5 {[%clk 0:00:02.5]} 38. Rf1 {[%clk 0:00:06.9]} 38...
Ne5 {[%clk 0:00:02.7]} 39. Kh2 {[%clk 0:00:06.1]} 39... Nd3 {[%clk 0:00:03.6]}
40. Kh3 {[%clk 0:00:07]} 40... Rf7 {[%clk 0:00:03.6]} 41. Ra1 {[%clk 0:00:07.3]}
41... Kd6 {[%clk 0:00:02.8]} 42. Ra7 {[%clk 0:00:08.2]} 42... Ke5 {[%clk
0:00:03.7]} 43. Rxb7 {[%clk 0:00:08.3]} 43... Rxb7 {[%clk 0:00:03.1]} 44. h5
{[%clk 0:00:09.2]} 44... Rxb4 {[%clk 0:00:03.8]} 0-1